fUST/lending_fUST_20250425
["ID","MTS","AMOUNT","RATE_DAILY","PERIOD"]
[358940508,1745570978457,-151.0,0.00016438,2]
[358940509,1745570978481,-151.0,0.00016438,2]
[358940510,1745570978504,-514.74,0.00016438,2]
[358940511,1745570978527,-254.88956841,0.00016438,2]
[358940512,1745570978549,-764.26,0.00016438,2]
[358940513,1745570978571,-500.0,0.00016438,2]
[358940514,1745570978594,-506.01637031,0.00016438,2]
[358940515,1745570978616,-396.23168428,0.00016438,2]
[358940516,1745570978638,-502.07144177,0.00016438,2]
[358940517,1745570978660,-204.28141777,0.00016438,2]
[358940518,1745570978682,-500.0,0.00016438,2]
[358940519,1745570978705,-500.0,0.00016438,2]
[358940520,1745570978728,-500.0,0.00016438,2]
[358940521,1745570978751,-746.61,0.00016438,2]
[358940522,1745570978773,-717.76,0.00016438,2]
[358940523,1745570978795,-500.0,0.00016438,2]
[358940524,1745570978817,-500.0,0.00016438,2]
[358940525,1745570978839,-500.0,0.00016438,2]
[358940526,1745570978861,-500.0,0.00016438,2]
[358940527,1745570978892,-500.0,0.00016438,2]
[358940528,1745570978919,-500.0,0.00016438,2]
[358940529,1745570978943,-500.0,0.00016438,2]
[358940530,1745570978966,-500.0,0.00016438,2]
[358940531,1745570978989,-500.0,0.00016438,2]
[358940532,1745570979012,-632.34,0.00016438,2]
[358940533,1745570979036,-1485.64,0.00016438,2]
[358940534,1745570979059,-500.0,0.00016438,2]
[358940535,1745570979082,-500.0,0.00016438,2]
[358940536,1745570979104,-500.0,0.00016438,2]
[358940537,1745570979127,-500.0,0.00016438,2]
[358940538,1745570979150,-500.0,0.00016438,2]
[358940539,1745570979172,-500.0,0.00016438,2]
[358940540,1745570979195,-622.9931798,0.00016438,2]
[358940541,1745570979221,-534.464613,0.00016438,2]
[358940542,1745570979243,-500.0,0.00016438,2]
[358940543,1745570979266,-500.0,0.00016438,2]
[358940544,1745570979288,-813.24,0.00016438,2]
[358940545,1745570979313,-511.89625325,0.00016438,2]
[358940546,1745570979335,-500.0,0.00016438,2]
[358940547,1745570979360,-2600.91,0.00016438,2]
[358940548,1745570979383,-500.0,0.00016438,2]
[358940549,1745570979406,-221.59638407,0.00016438,2]
[358940550,1745570979429,-500.0,0.00016438,2]
[358940551,1745570979452,-614.55,0.00016438,2]
[358940552,1745570979476,-500.0,0.00016438,2]
[358940553,1745570979500,-504.98733083,0.00016438,2]
[358940554,1745570979526,-1492.56,0.00016438,2]
[358940555,1745570979548,-500.0,0.00016438,2]
[358940556,1745570979571,-2902.76,0.00016438,2]
[358940557,1745570979594,-500.0,0.00016438,2]
[358940558,1745570979617,-1276.4,0.00016438,2]
[358940559,1745570979644,-500.0,0.00016438,2]
[358940560,1745570979667,-539.36239021,0.00016438,2]
[358940561,1745570979691,-803.26,0.00016438,2]
[358940562,1745570979713,-500.0,0.00016438,2]
[358940563,1745570979737,-510.28,0.00016438,2]
[358940564,1745570979760,-500.0,0.00016438,2]
[358940565,1745570979783,-500.0,0.00016438,2]
[358940566,1745570979804,-500.0,0.00016438,2]
[358940567,1745570979827,-500.0,0.00016438,2]
[358940568,1745570979850,-925.6,0.00016438,2]
[358940569,1745570979872,-500.0,0.00016438,2]
[358940570,1745570979896,-520.83038148,0.00016438,2]
[358940571,1745570979919,-500.0,0.00016438,2]
[358940572,1745570979943,-500.0,0.00016438,2]
[358940573,1745570979967,-500.0,0.00016438,2]
[358940574,1745570979994,-918.56,0.00016438,2]
[358940575,1745570980017,-500.0,0.00016438,2]
[358940576,1745570980044,-2977.83,0.00016438,2]
[358940577,1745570980067,-971.08,0.00016438,2]
[358940578,1745570980090,-500.0,0.00016438,2]
[358940579,1745570980114,-2081.17,0.00016438,2]
[358940580,1745570980138,-500.0,0.00016438,2]
[358940581,1745570980161,-515.71409066,0.00016438,2]
[358940582,1745570980185,-500.0,0.00016438,2]
[358940583,1745570980211,-500.0,0.00016438,2]
[358940584,1745570980235,-1249.45,0.00016438,2]
[358940585,1745570980262,-500.0,0.00016438,2]
[358940586,1745570980288,-500.0,0.00016438,2]
[358940587,1745570980311,-500.0,0.00016438,2]
[358940588,1745570980333,-613.38054622,0.00016438,2]
[358940589,1745570980354,-500.0,0.00016438,2]
[358940590,1745570980378,-500.0,0.00016438,2]
[358940591,1745570980401,-2065.78,0.00016438,2]
[358940592,1745570980426,-500.0,0.00016438,2]
[358940593,1745570980448,-1141.57,0.00016438,2]
[358940594,1745570980471,-320.0,0.00016438,2]
[358940595,1745570980495,-500.0,0.00016438,2]
[358940596,1745570980519,-500.0,0.00016438,2]
[358940597,1745570980542,-721.51,0.00016438,2]
[358940598,1745570980565,-853.37,0.00016438,2]
[358940599,1745570980588,-930.17,0.00016438,2]
[358940600,1745570980611,-500.0,0.00016438,2]
[358940601,1745570980635,-500.0,0.00016438,2]
[358940602,1745570980659,-500.0,0.00016438,2]
[358940603,1745570980681,-500.0,0.00016438,2]
[358940604,1745570980705,-674.85,0.00016438,2]
[358940605,1745570980728,-500.0,0.00016438,2]
[358940606,1745570980752,-500.0,0.00016438,2]
[358940607,1745570980777,-500.0,0.00016438,2]
[358940608,1745570980801,-500.0,0.00016438,2]
[358940609,1745570980825,-500.0,0.00016438,2]
[358940610,1745570980850,-662.59,0.00016438,2]
[358940611,1745570980874,-791.3,0.00016438,2]
[358940612,1745570980899,-3466.93,0.00016438,2]
[358940613,1745570980923,-500.0,0.00016438,2]
[358940614,1745570980947,-500.0,0.00016438,2]
[358940615,1745570980970,-396.87341308,0.00016438,2]
[358940616,1745570980994,-1007.39,0.00016438,2]
[358940617,1745570981017,-500.0,0.00016438,2]
[358940618,1745570981041,-500.0,0.00016438,2]
[358940619,1745570981064,-420.98395174,0.00016444,2]
[358940620,1745570981089,-12579.26882624,0.00016444,2]
[358940621,1745570981111,-160.0,0.00016444,2]
[358940622,1745570981286,-160.0,0.00016444,2]
[358940623,1745570981309,-160.0,0.00016444,2]
[358940624,1745570981331,-160.0,0.00016444,2]
[358940625,1745570981354,-160.0,0.00016444,2]
[358940626,1745570981379,-184.89674793,0.00016487,2]
[358940627,1745570981405,-432.537,0.00016496,2]
[358940628,1745570981428,-160.0,0.00016501,2]
[358940629,1745570981451,-840.21051354,0.00016501,2]
[358940630,1745570981474,-160.0,0.00016501,2]
[358940631,1745570981497,-151.0,0.00016512,2]
[358940632,1745570981519,-222.121607,0.00016512,2]
[358940633,1745570981542,-151.0,0.00016512,2]
[358940634,1745570981564,-500.72860671,0.00016512,2]
[358940635,1745570981586,-500.0,0.00016512,2]
[358940636,1745570981609,-500.0,0.00016512,2]
[358940637,1745570981632,-500.0,0.00016512,2]
[358940638,1745570981654,-509.87054545,0.00016512,2]
[358940639,1745570981677,-714.19,0.00016512,2]
[358940640,1745570981700,-500.0,0.00016512,2]
[358940641,1745570981723,-651.38,0.00016512,2]
[358940642,1745570981746,-500.0,0.00016512,2]
[358940643,1745570981768,-500.0,0.00016512,2]
[358940644,1745570981790,-854.77,0.00016512,2]
[358940645,1745570981813,-500.0,0.00016512,2]
[358940646,1745570981835,-916.68,0.00016512,2]
[358940647,1745570981857,-183.85394085,0.00016512,2]
[358940648,1745570981879,-500.0,0.00016512,2]
[358940649,1745570981901,-500.0,0.00016512,2]
[358940650,1745570981923,-500.0,0.00016512,2]
[358940651,1745570981945,-500.0,0.00016512,2]
[358940652,1745570981967,-500.0,0.00016512,2]
[358940653,1745570981990,-500.0,0.00016512,2]
[358940654,1745570982014,-500.0,0.00016512,2]
[358940655,1745570982036,-500.0,0.00016512,2]
[358940656,1745570982059,-500.0,0.00016512,2]
[358940657,1745570982081,-500.0,0.00016512,2]
[358940658,1745570982104,-500.0,0.00016512,2]
[358940659,1745570982126,-1178.1,0.00016512,2]
[358940660,1745570982149,-500.0,0.00016512,2]
[358940661,1745570982171,-593.01,0.00016512,2]
[358940662,1745570982194,-500.0,0.00016512,2]
[358940663,1745570982220,-500.0,0.00016512,2]
[358940664,1745570982243,-500.0,0.00016512,2]
[358940665,1745570982264,-500.0,0.00016512,2]
[358940666,1745570982294,-500.0,0.00016512,2]
[358940667,1745570982317,-500.0,0.00016512,2]
[358940668,1745570982340,-500.0,0.00016512,2]
[358940669,1745570982363,-500.0,0.00016512,2]
[358940670,1745570982387,-500.0,0.00016512,2]
[358940671,1745570982410,-959.76,0.00016512,2]
[358940672,1745570982432,-500.0,0.00016512,2]
[358940673,1745570982456,-500.0,0.00016512,2]
[358940674,1745570982478,-500.0,0.00016512,2]
[358940675,1745570982501,-500.0,0.00016512,2]
[358940676,1745570982524,-365.84329233,0.00016512,2]
[358940677,1745570982547,-500.0,0.00016512,2]
[358940678,1745570982570,-500.0,0.00016512,2]
[358940679,1745570982593,-500.0,0.00016512,2]
[358940680,1745570982615,-849.43,0.00016512,2]
[358940681,1745570982638,-190.45130781,0.00016512,2]
[358940682,1745570982660,-500.0,0.00016512,2]
[358940683,1745570982683,-500.0,0.00016512,2]
[358940684,1745570982706,-500.0,0.00016512,2]
[358940685,1745570982730,-500.0,0.00016512,2]
[358940686,1745570982756,-500.0,0.00016512,2]
[358940687,1745570982781,-500.0,0.00016512,2]
[358940688,1745570982804,-500.0,0.00016512,2]
[358940689,1745570982826,-506.52,0.00016512,2]
[358940690,1745570982848,-500.0,0.00016512,2]
[358940691,1745570982870,-500.0,0.00016512,2]
[358940692,1745570982892,-500.0,0.00016512,2]
[358940693,1745570982914,-800.79,0.00016512,2]
[358940694,1745570982936,-151.0,0.00016528,2]
[358940695,1745570982960,-151.0,0.00016528,2]
[358940696,1745570982983,-2561.27203169,0.00016557,2]
[358940697,1745570983006,-151.0,0.000166,2]
[358940698,1745570983028,-151.0,0.000166,2]
[358940699,1745570983051,-30000.0,0.0001665,2]
[358940700,1745570983074,-207.4,0.00016653,2]
[358940701,1745570983096,-151.0,0.0001666,2]
[358940702,1745570983119,-151.0,0.0001666,2]
[358940703,1745570983142,-151.0,0.0001666,2]
[358940704,1745570983164,-151.0,0.0001666,2]
[358940705,1745570983188,-151.0,0.0001666,2]
[358940706,1745570983213,-151.0,0.0001666,2]
[358940707,1745570983235,-151.0,0.0001666,2]
[358940708,1745570983256,-80870.16833319,0.0001666,2]
[358940717,1745571031818,-5000.0,0.000163,2]
[358940718,1745571031828,-300.0,0.00016437,2]
[358940719,1745571031838,-300.0,0.00016437,2]
[358940720,1745571031847,-500.0,0.00016438,2]
[358940721,1745571031856,-500.0,0.00016438,2]
[358940722,1745571031865,-500.0,0.00016438,2]
[358940723,1745571031874,-500.0,0.00016438,2]
[358940724,1745571031884,-500.0,0.00016438,2]
[358940725,1745571031893,-500.0,0.00016438,2]
[358940726,1745571031903,-500.0,0.00016438,2]
[358940727,1745571031912,-500.0,0.00016438,2]
[358940728,1745571031922,-588.95,0.00016438,2]
[358940729,1745571031932,-500.0,0.00016438,2]
[358940731,1745571031943,-500.0,0.00016438,2]
[358940733,1745571031952,-500.0,0.00016438,2]
[358940734,1745571031963,-500.0,0.00016438,2]
[358940736,1745571031973,-500.0,0.00016438,2]
[358940738,1745571031982,-658.0,0.00016438,2]
[358940739,1745571031992,-752.04,0.00016438,2]
[358940740,1745571032002,-472.0304257,0.00016493,2]
[358940741,1745571032011,-791.01,0.00016512,2]
[358940742,1745571032021,-500.0,0.00016512,2]
[358940743,1745571032030,-2492.53,0.00016512,2]
[358940744,1745571032040,-500.0,0.00016512,2]
[358940746,1745571032049,-661.28,0.00016512,2]
[358940747,1745571032058,-207.4,0.00016653,2]
[358940748,1745571032068,-3418.59687916,0.0001666,2]
[358940749,1745571032080,-5904.9716726,0.0001666,2]
[358940750,1745571032090,-151.0,0.0001666,2]
[358940751,1745571032100,-151.0,0.0001666,2]
[358940752,1745571032111,-151.721698,0.0001666,2]
[358940753,1745571032119,-151.0,0.0001666,2]
[358940754,1745571032130,-151.0,0.0001666,2]
[358940755,1745571032139,-151.0,0.0001666,2]
[358940756,1745571032149,-189.367252,0.0001666,2]
[358940757,1745571032159,-189.367252,0.0001666,2]
[358940758,1745571032169,-162016.19951032,0.00016663,2]
[358940759,1745571032181,-140373.25081966,0.00016663,2]
[358940777,1745571037819,-642.62619865,0.00016246,2]
[358940779,1745571037828,-500.0,0.00016299,2]
[358940781,1745571037838,-500.0,0.00016299,2]
[358940783,1745571037847,-577.44952205,0.00016299,2]
[358940785,1745571037857,-568.3,0.00016438,2]
[358940787,1745571037866,-1430.37,0.00016438,2]
[358940789,1745571037875,-500.0,0.00016438,2]
[358940791,1745571037884,-1117.941708,0.0001666,2]
[358940793,1745571037893,-1117.941708,0.0001666,2]
[358940795,1745571037902,-25180.84723192,0.00016663,2]
[358940797,1745571037914,-8956.53795251,0.00016663,2]
[358940801,1745571037944,-48.22043977,0.00016663,2]
[358940815,1745571038213,-16993.24145058,0.00016663,2]
[358940816,1745571038228,-2947.57868918,0.00016663,2]
[358940821,1745571040166,-204929.19507696,0.00016663,2]
[358940858,1745571049790,-500.0,0.00016438,2]
[358940859,1745571049800,-1223.21,0.00016512,2]
[358940860,1745571049809,-61142.20702359,0.00016663,2]
[358940861,1745571049984,-47152.85610375,0.00016663,2]
[358940862,1745571049995,-938.00266012,0.00016663,2]
[358940864,1745571111565,500.0,0.00025,30]
[358940865,1745571116426,1000.0,0.00025,30]
[358940867,1745571784867,680.107,0.00025,30]
[358940869,1745571819273,92001.43440495,0.00025,30]
[358940871,1745572030088,-550.00135911,0.00015141,2]
[358940872,1745572030109,-300.0,0.00015239,2]
[358940873,1745572030129,-224.61906525,0.0001524,2]
[358940874,1745572030152,-500.0,0.0001524,2]
[358940875,1745572030173,-479.80924815,0.0001524,2]
[358940876,1745572030195,-316.45056469,0.0001524,2]
[358940877,1745572030225,-483.1007628,0.0001524,2]
[358940880,1745572174237,-481.25118923,0.00015139,2]
[358940881,1745572174259,-300.0,0.00015238,2]
[358940882,1745572174279,-157.23334568,0.00015239,2]
[358940883,1745572174300,-500.0,0.00015239,2]
[358940884,1745572174320,-185.8664737,0.00015239,2]
[358940885,1745572174342,-500.0,0.00015239,2]
[358940886,1745572174364,-492.97681749,0.00015239,2]
[358940887,1745572174386,-500.0,0.00015239,2]
[358940888,1745572174407,-500.0,0.00015239,2]
[358940889,1745572174429,-500.0,0.00015239,2]
[358940890,1745572174457,-500.0,0.00015239,2]
[358940891,1745572174478,-500.0,0.00015239,2]
[358940892,1745572174499,-500.0,0.00015239,2]
[358940893,1745572174526,-500.0,0.00015239,2]
[358940894,1745572174547,-500.0,0.00015239,2]
[358940895,1745572174574,-500.0,0.00015239,2]
[358940896,1745572174601,-500.0,0.00015239,2]
[358940897,1745572174628,-500.0,0.00015239,2]
[358940898,1745572174653,-500.0,0.00015239,2]
[358940899,1745572174679,-500.0,0.00015239,2]
[358940900,1745572174701,-500.0,0.00015239,2]
[358940901,1745572174726,-500.0,0.00015239,2]
[358940902,1745572174755,-500.0,0.00015239,2]
[358940903,1745572174776,-433.16584032,0.00015239,2]
[358940904,1745572174803,-191.24338104,0.00015239,2]
[358940905,1745572174829,-500.0,0.00015239,2]
[358940906,1745572174855,-500.0,0.00015239,2]
[358940907,1745572174881,-500.0,0.00015239,2]
[358940908,1745572174908,-500.0,0.00015239,2]
[358940909,1745572174935,-500.0,0.00015239,2]
[358940910,1745572174961,-500.0,0.00015239,2]
[358940911,1745572174988,-500.0,0.00015239,2]
[358940912,1745572175015,-500.0,0.00015239,2]
[358940913,1745572175040,-500.0,0.00015239,2]
[358940914,1745572175066,-500.0,0.00015239,2]
[358940915,1745572175092,-500.0,0.00015239,2]
[358940916,1745572175116,-500.0,0.00015239,2]
[358940917,1745572175143,-500.0,0.00015239,2]
[358940918,1745572175170,-500.0,0.00015239,2]
[358940919,1745572175196,-500.0,0.00015239,2]
[358940920,1745572175222,-500.0,0.00015239,2]
[358940921,1745572175248,-500.0,0.00015239,2]
[358940922,1745572175273,-500.0,0.00015239,2]
[358940923,1745572175297,-500.0,0.00015239,2]
[358940924,1745572175322,-644.34005303,0.00015239,2]
[358940925,1745572175348,-644.34005303,0.00015239,2]
[358940926,1745572175373,-644.34005303,0.00015239,2]
[358940927,1745572175398,-644.34005303,0.00015239,2]
[358940928,1745572175423,-644.34005303,0.00015239,2]
[358940929,1745572175447,-644.34005303,0.00015239,2]
[358940930,1745572175472,-644.34005303,0.00015239,2]
[358940931,1745572175497,-644.34005303,0.00015239,2]
[358940932,1745572175522,-644.34005303,0.00015239,2]
[358940933,1745572175547,-644.34005303,0.00015239,2]
[358940934,1745572175572,-644.34005303,0.00015239,2]
[358940935,1745572175598,-644.34005303,0.00015239,2]
[358940936,1745572175624,-644.34005303,0.00015239,2]
[358940937,1745572175649,-644.34005303,0.00015239,2]
[358940938,1745572175674,-644.34005303,0.00015239,2]
[358940939,1745572175699,-644.34005303,0.00015239,2]
[358940940,1745572175724,-644.34005303,0.00015239,2]
[358940941,1745572175752,-644.34005303,0.00015239,2]
[358940942,1745572175780,-644.34005303,0.00015239,2]
[358940943,1745572175809,-644.34005303,0.00015239,2]
[358940944,1745572175837,-644.34005303,0.00015239,2]
[358940945,1745572175864,-644.34005303,0.00015239,2]
[358940946,1745572175890,-644.34005303,0.00015239,2]
[358940947,1745572175916,-644.34005303,0.00015239,2]
[358940948,1745572175943,-644.34005303,0.00015239,2]
[358940949,1745572175969,-644.34005303,0.00015239,2]
[358940950,1745572175995,-644.34005303,0.00015239,2]
[358940951,1745572176021,-644.34005303,0.00015239,2]
[358940952,1745572176047,-644.34005303,0.00015239,2]
[358940953,1745572176073,-644.34005303,0.00015239,2]
[358940954,1745572176101,-644.34005303,0.00015239,2]
[358940955,1745572176128,-644.34005303,0.00015239,2]
[358940956,1745572176154,-644.34005303,0.00015239,2]
[358940957,1745572176179,-644.34005303,0.00015239,2]
[358940958,1745572176204,-644.34005303,0.00015239,2]
[358940959,1745572176230,-644.34005303,0.00015239,2]
[358940960,1745572176256,-644.34005303,0.00015239,2]
[358940961,1745572176282,-644.34005303,0.00015239,2]
[358940962,1745572176307,-644.34005303,0.00015239,2]
[358940963,1745572176333,-644.34005303,0.00015239,2]
[358940964,1745572176357,-644.34005303,0.00015239,2]
[358940965,1745572176381,-644.34005303,0.00015239,2]
[358940966,1745572176405,-644.34005303,0.00015239,2]
[358940967,1745572176430,-644.34005303,0.00015239,2]
[358940968,1745572176455,-644.34005303,0.00015239,2]
[358940969,1745572176480,-644.34005303,0.00015239,2]
[358940970,1745572176504,-644.34005303,0.00015239,2]
[358940971,1745572176528,-644.34005303,0.00015239,2]
[358940972,1745572176553,-630.02138517,0.00015239,2]
[358940973,1745572176577,-630.02138517,0.00015239,2]
[358940974,1745572176603,-630.02138517,0.00015239,2]
[358940975,1745572176628,-630.02138517,0.00015239,2]
[358940976,1745572176653,-630.02138517,0.00015239,2]
[358940977,1745572176678,-630.02138517,0.00015239,2]
[358940978,1745572176703,-630.02138517,0.00015239,2]
[358940979,1745572176728,-630.02138517,0.00015239,2]
[358940980,1745572176756,-630.02138517,0.00015239,2]
[358940981,1745572176781,-630.02138517,0.00015239,2]
[358940982,1745572176807,-630.02138517,0.00015239,2]
[358940983,1745572176832,-630.02138517,0.00015239,2]
[358940984,1745572176857,-630.02138517,0.00015239,2]
[358940985,1745572176883,-630.02138517,0.00015239,2]
[358940986,1745572176904,-1200.0,0.00015241,2]
[358940987,1745572176924,-300.0,0.00015241,2]
[358940988,1745572176944,-300.0,0.00015241,2]
[358940989,1745572176963,-5277.50257845,0.00015243,2]
[358940990,1745572177370,10167.55234696,0.00015,2]
[358940993,1745572231993,-1203.11913805,0.00015243,2]
[358940994,1745572232003,-177.0914867,0.00015549,2]
[358940995,1745572232013,-160.0,0.00015993,2]
[358940996,1745572232022,-385.65865881,0.00016197,2]
[358940997,1745572232032,-129.47273464,0.00016289,2]
[358940998,1745572232044,-170.52726536,0.00016289,2]
[358940999,1745572232053,-503.0,0.00016289,2]
[358941000,1745572232062,-268.34273464,0.00016289,2]
[358941001,1745572232074,-31.65726536,0.00016289,2]
[358941002,1745572232083,-350.84273464,0.0001629,2]
[358941003,1745572232094,-641.04713627,0.0001629,2]
[358941004,1745572232106,-19008.11012909,0.0001629,2]
[358941005,1745572232115,-382.60574038,0.00016338,2]
[358941006,1745572232124,-507.26628948,0.00016338,2]
[358941007,1745572232133,-382.60574036,0.00016394,2]
[358941008,1745572232143,-7744.42089479,0.00016424,2]
[358941009,1745572232152,-160.0,0.00016424,2]
[358941010,1745572232161,-160.0,0.00016424,2]
[358941011,1745572232170,-160.0,0.00016424,2]
[358941012,1745572232179,-160.0,0.00016424,2]
[358941013,1745572232188,-160.0,0.00016424,2]
[358941015,1745572232198,-840.21051354,0.00016424,2]
[358941017,1745572232207,-160.0,0.00016424,2]
[358941019,1745572232216,-420.98395174,0.00016424,2]
[358941020,1745572232225,-207.4,0.00016428,2]
[358941021,1745572232234,-30000.0,0.00016435,2]
[358941023,1745572232243,-732.41,0.00016438,2]
[358941024,1745572232253,-346.03,0.00016438,2]
[358941025,1745572232263,-500.0,0.00016438,2]
[358941026,1745572232272,-500.0,0.00016438,2]
[358941027,1745572232281,-500.0,0.00016438,2]
[358941028,1745572232290,-500.0,0.00016438,2]
[358941029,1745572232299,-347.39962463,0.00016438,2]
[358941031,1745572232309,-780.0,0.00016438,2]
[358941033,1745572232320,-500.0,0.00016438,2]
[358941035,1745572232329,-500.0,0.00016438,2]
[358941036,1745572232338,-500.0,0.00016438,2]
[358941038,1745572232347,-500.0,0.00016438,2]
[358941041,1745572232357,-684.43,0.00016438,2]
[358941043,1745572232367,-500.0,0.00016438,2]
[358941044,1745572232377,-490.07319311,0.00016438,2]
[358941046,1745572232386,-526.46,0.00016438,2]
[358941047,1745572232397,-500.0,0.00016438,2]
[358941048,1745572232406,-500.0,0.00016438,2]
[358941049,1745572232416,-500.0,0.00016438,2]
[358941050,1745572232425,-624.23,0.00016438,2]
[358941051,1745572232435,-500.0,0.00016438,2]
[358941052,1745572232444,-500.0,0.00016438,2]
[358941053,1745572232454,-500.0,0.00016438,2]
[358941054,1745572232464,-500.0,0.00016438,2]
[358941055,1745572232473,-500.0,0.00016438,2]
[358941056,1745572232483,-687.85,0.00016438,2]
[358941057,1745572232493,-500.0,0.00016438,2]
[358941058,1745572232502,-691.45,0.00016438,2]
[358941059,1745572232511,-500.0,0.00016438,2]
[358941060,1745572232521,-500.0,0.00016438,2]
[358941061,1745572232530,-819.15,0.00016438,2]
[358941062,1745572232539,-878.49,0.00016438,2]
[358941063,1745572232548,-1423.73,0.00016438,2]
[358941064,1745572232558,-500.0,0.00016438,2]
[358941065,1745572232567,-500.0,0.00016438,2]
[358941066,1745572232577,-260.16717327,0.00016438,2]
[358941067,1745572232586,-500.0,0.00016438,2]
[358941068,1745572232596,-500.0,0.00016438,2]
[358941069,1745572232605,-500.0,0.00016438,2]
[358941070,1745572232615,-720.7,0.00016438,2]
[358941071,1745572232624,-439.66107145,0.00016438,2]
[358941072,1745572232633,-779.35,0.00016438,2]
[358941073,1745572232645,-500.0,0.00016438,2]
[358941074,1745572232654,-500.0,0.00016438,2]
[358941075,1745572232664,-500.0,0.00016438,2]
[358941076,1745572232673,-168.8,0.00016438,2]
[358941077,1745572232683,-1129.02,0.00016438,2]
[358941078,1745572232861,-500.0,0.00016438,2]
[358941079,1745572232871,-921.48,0.00016438,2]
[358941080,1745572232881,-1172.25,0.00016438,2]
[358941081,1745572232893,-769.8,0.00016438,2]
[358941082,1745572232902,-500.0,0.00016438,2]
[358941083,1745572232911,-1438.11,0.00016438,2]
[358941084,1745572232921,-500.0,0.00016438,2]
[358941085,1745572232930,-500.0,0.00016438,2]
[358941086,1745572232940,-500.0,0.00016438,2]
[358941087,1745572232949,-3008.7,0.00016438,2]
[358941088,1745572232959,-594.5569643,0.00016438,2]
[358941089,1745572232968,-544.62,0.00016438,2]
[358941090,1745572232977,-500.0,0.00016438,2]
[358941091,1745572232986,-500.0,0.00016438,2]
[358941092,1745572232996,-930.62,0.00016438,2]
[358941093,1745572233006,-500.0,0.00016438,2]
[358941094,1745572233016,-500.0,0.00016438,2]
[358941095,1745572233026,-500.0,0.00016438,2]
[358941096,1745572233036,-500.0,0.00016438,2]
[358941097,1745572233046,-500.0,0.00016438,2]
[358941098,1745572233056,-500.0,0.00016438,2]
[358941099,1745572233065,-500.0,0.00016438,2]
[358941100,1745572233074,-3095.33,0.00016438,2]
[358941101,1745572233084,-887.03,0.00016438,2]
[358941102,1745572233093,-1197.39,0.00016438,2]
[358941103,1745572233103,-500.0,0.00016438,2]
[358941104,1745572233112,-997.3,0.00016438,2]
[358941105,1745572233122,-500.0,0.00016438,2]
[358941106,1745572233131,-500.0,0.00016438,2]
[358941107,1745572233140,-2018.69,0.00016438,2]
[358941108,1745572233150,-500.0,0.00016438,2]
[358941109,1745572233159,-558.5866536,0.00016438,2]
[358941110,1745572233169,-500.0,0.00016438,2]
[358941111,1745572233179,-500.0,0.00016438,2]
[358941112,1745572233188,-500.0,0.00016438,2]
[358941113,1745572233198,-500.0,0.00016438,2]
[358941114,1745572233207,-919.77,0.00016438,2]
[358941115,1745572233216,-500.0,0.00016438,2]
[358941116,1745572233226,-500.0,0.00016438,2]
[358941117,1745572233235,-500.0,0.00016438,2]
[358941118,1745572233244,-500.0,0.00016438,2]
[358941119,1745572233254,-500.0,0.00016438,2]
[358941120,1745572233263,-1979.71,0.00016438,2]
[358941121,1745572233274,-891.41,0.00016438,2]
[358941122,1745572233283,-500.0,0.00016438,2]
[358941123,1745572233292,-500.0,0.00016438,2]